bitfinex/quotes_ETHUSD_20251127
["timestamp","ask_amount","ask_price","bid_price","bid_amount"]
[1764232366773,0.4745,3023.8,3023.4,7.84727677]
[1764232367263,0.209,3023.9,3023.7,0.2503]
[1764232367659,0.209,3023.9,3023.6,3.30728843]
[1764232367969,0.6835,3023.9,3023.6,3.30728843]
[1764232368972,0.6835,3023.9,3023.4,4.28944221]
[1764232368973,0.6835,3023.9,3023.5,3.30738379]
[1764232369167,0.209,3023.9,3023.5,3.30738379]
[1764232369382,0.4745,3023.8,3023.5,3.30738379]
[1764232374370,0.4745,3023.8,3023.4,3.30753405]
[1764232374975,0.4745,3023.8,3023.4,6.61506861]
[1764232375183,0.99356007,3024.1,3023.7,0.2503]
[1764232375184,1.20256007,3024.1,3023.7,0.2503]
[1764232375471,0.209,3024.4,3024.0,0.2503]
[1764232375676,0.30740994,3024.3,3024.0,0.2503]
[1764232375874,0.30740994,3024.2,3024.0,0.2503]
[1764232376192,0.30753621,3024.1,3024.0,0.2503]
[1764232376481,0.002,3024.4,3024.3,0.2503]
[1764232376980,0.30955306,3024.4,3024.3,0.2503]
[1764232377154,0.002,3024.4,3024.3,0.2503]
[1764232377355,0.30955306,3024.4,3024.3,0.2503]
[1764232377557,0.78115306,3024.4,3024.2,2.95278526]
[1764232377745,0.78115306,3024.4,3024.1,0.1228]
[1764232377746,0.30755306,3024.3,3024.1,0.1228]
[1764232377950,0.30755306,3024.3,3024.1,3.42955892]
[1764232378489,0.30755306,3024.3,3024.1,0.1228]
[1764232378855,0.30755306,3024.3,3024.0,3.30682762]
[1764232379216,0.4716,3024.1,3023.5,3.30840167]
[1764232379482,0.4716,3024.0,3023.5,3.51740167]
[1764232379776,0.4716,3024.0,3023.5,6.82482683]
[1764232379994,0.4716,3024.0,3023.5,8.07801804]
[1764232380455,0.4745,3023.9,3023.5,1.21289121]
[1764232380654,0.4745,3023.9,3023.5,0.001]
[1764232381165,0.4716,3023.6,3023.5,0.001]
[1764232381962,0.4745,3023.8,3023.5,0.001]
[1764232382276,0.30754306,3023.7,3023.5,0.001]
[1764232383153,0.9461,3023.6,3023.5,0.001]
[1764232383354,1.44735737,3023.6,3023.5,0.001]
[1764232385235,6.18882046,3023.6,3023.5,0.001]
[1764232386787,6.32898653,3023.6,3023.5,0.001]
[1764232388392,6.53798653,3023.6,3023.5,0.001]
[1764232388563,6.32898653,3023.6,3023.5,0.001]
[1764232388767,6.53798653,3023.6,3023.5,0.001]
[1764232392488,6.32898653,3023.6,3023.5,0.001]
[1764232392670,6.53798653,3023.6,3023.5,0.001]
[1764232395993,3.02167075,3023.6,3023.5,0.001]
[1764232396196,2.52211755,3023.6,3023.5,0.001]
[1764232396365,0.91930913,3023.6,3023.5,0.001]
[1764232396566,1.12830913,3023.6,3023.5,0.001]
[1764232396767,0.65670913,3023.6,3023.5,0.001]
[1764232396966,0.65670913,3023.6,3023.5,0.2513]
[1764232396967,0.30754306,3023.6,3023.5,0.2513]
[1764232397367,0.209,3023.7,3023.5,0.2513]
[1764232397567,0.51654306,3023.7,3023.5,0.2513]
[1764232397792,0.51654306,3023.7,3023.6,2.75986382]
[1764232397996,0.30754306,3023.7,3023.6,3.01016382]
[1764232398297,1.20266538,3023.8,3023.6,3.01016382]
[1764232398465,0.88177343,3024.5,3023.7,0.2503]
[1764232398665,0.30865344,3024.4,3024.2,2.75986382]
[1764232398886,0.30865344,3024.4,3024.3,0.2503]
[1764232398887,0.002,3024.4,3024.3,0.2503]
[1764232399398,0.002,3024.4,3023.8,2.75986382]
[1764232399399,0.9449,3024.4,3023.8,2.75986382]
[1764232399600,0.4603,3024.3,3024.0,2.75986382]
[1764232399896,0.002,3024.4,3024.0,2.75986382]
[1764232400812,0.4603,3024.1,3023.7,2.75986382]
[1764232401013,0.4603,3023.8,3023.5,2.76086382]
[1764232401213,0.4826,3024.3,3023.5,6.06828549]
[1764232401418,0.51564462,3024.2,3023.5,2.76086382]
[1764232401582,0.51564462,3024.2,3023.5,0.001]
[1764232401783,0.4826,3024.1,3023.5,0.001]
[1764232401989,3.61356255,3024.0,3023.5,0.001]
[1764232402195,0.30664462,3023.9,3023.5,0.001]
[1764232402394,0.78924462,3023.9,3023.5,0.001]
[1764232402578,0.4826,3023.9,3023.5,0.001]
[1764232403093,3.30691793,3024.0,3023.5,0.001]
[1764232403293,0.4826,3023.8,3023.5,0.001]
[1764232404182,0.4603,3023.6,3023.5,0.001]
[1764232404385,0.9429,3023.6,3023.5,0.001]
[1764232405097,0.4603,3023.6,3023.5,0.001]
[1764232406181,0.9429,3023.6,3023.5,0.001]
[1764232407317,1.24971571,3023.6,3023.5,0.001]
[1764232407699,4.55703149,3023.6,3023.5,0.001]
[1764232407910,5.40224101,3023.6,3023.5,0.001]
[1764232408721,2.09492523,3023.6,3023.5,0.001]
[1764232409311,5.40224101,3023.6,3023.5,0.001]
[1764232409917,2.09492523,3023.6,3023.5,0.001]
[1764232410434,1.82132523,3023.6,3023.5,0.001]
[1764232410610,0.97611571,3023.6,3023.5,0.001]
[1764232411535,0.30681571,3023.6,3023.5,0.001]
[1764232411724,4.28365363,3023.6,3023.5,0.001]
[1764232412123,4.76625363,3023.6,3023.5,0.001]
[1764232412835,1.45893785,3023.6,3023.5,0.001]
[1764232413337,4.76625363,3023.6,3023.5,0.001]
[1764232413638,1.45893785,3023.6,3023.5,0.001]
[1764232415630,0.97633785,3023.6,3023.5,0.001]
[1764232416327,0.30703785,3023.6,3023.5,3.01116382]
[1764232416519,0.30703785,3023.7,3023.5,3.01116382]
[1764232416716,0.30703785,3023.6,3023.5,2.76086382]
[1764232417033,0.209,3023.8,3023.6,0.2503]
[1764232417211,0.30711447,3023.9,3023.6,0.2503]
[1764232417412,0.51611447,3023.8,3023.6,0.2503]
[1764232417612,0.30711447,3023.7,3023.6,0.2503]
[1764232418329,0.209,3023.8,3023.6,0.2503]
[1764232418531,0.76741447,3023.7,3023.5,0.001]
[1764232418731,0.4603,3023.7,3023.5,0.001]
[1764232418933,0.6916,3023.8,3023.5,0.001]
[1764232418934,0.209,3023.8,3023.5,0.001]
[1764232419236,0.30717992,3023.7,3023.5,0.001]
[1764232419814,0.209,3023.9,3023.6,0.2503]
[1764232420011,0.17401863,3024.3,3023.5,6.31851177]
[1764232420012,0.3072157,3024.1,3023.8,0.2503]
[1764232420248,0.3072157,3024.0,3023.8,0.2503]
[1764232420454,0.3072157,3023.9,3023.8,0.2503]
[1764232420629,0.70784571,3024.2,3023.9,0.2503]
[1764232420630,1.43343982,3024.2,3023.9,0.2503]
[1764232420835,0.3072338,3024.1,3023.9,0.2503]
[1764232421148,3.96033698,3024.3,3023.9,0.2503]
[1764232421149,0.3072338,3024.0,3023.9,0.2503]
[1764232421318,0.3072338,3024.2,3023.9,0.2503]
[1764232421518,0.3072338,3024.1,3023.9,0.2503]
[1764232421722,0.3072338,3024.0,3023.9,0.2503]
[1764232422119,0.3072338,3024.2,3023.9,0.2503]
[1764232422327,0.3072338,3024.1,3023.9,0.2503]
[1764232422527,0.3072338,3024.0,3023.9,0.2503]
[1764232422928,0.3072338,3024.2,3023.9,0.2503]
[1764232423144,0.3072338,3024.1,3023.9,0.2503]
[1764232423350,0.3072338,3024.0,3023.9,0.2503]
[1764232423518,0.3072338,3024.2,3023.9,0.2503]
[1764232423721,0.3072338,3024.1,3023.9,0.2503]
[1764232424048,0.3072338,3024.0,3023.9,0.2503]
[1764232424420,0.3072338,3024.2,3023.9,0.2503]
[1764232424653,0.3072338,3024.1,3023.9,0.2503]
[1764232424954,0.30723189,3024.0,3023.9,3.55727269]
[1764232425150,0.30723189,3024.0,3023.9,3.30697269]
[1764232425353,0.30723189,3024.2,3023.9,0.2503]
[1764232425553,0.30723189,3024.1,3023.9,0.2503]
[1764232425848,0.72559411,3024.3,3023.9,0.2503]
[1764232425849,0.30723189,3024.0,3023.9,0.2503]
[1764232426029,0.30723189,3024.2,3023.8,3.30706942]
[1764232426229,0.30723189,3024.1,3023.9,0.2503]
[1764232426429,0.30723189,3024.0,3023.9,0.2503]
[1764232426655,0.30723189,3024.2,3023.9,0.2503]
[1764232426861,0.30723189,3024.1,3023.9,0.2503]
[1764232427063,0.30723189,3024.0,3023.9,0.2503]
[1764232427260,0.30723189,3024.0,3023.9,3.55728675]
[1764232427546,0.30723189,3024.2,3023.9,3.55728675]
[1764232427723,0.30723189,3024.1,3023.9,3.55728675]
[1764232427925,0.30723189,3024.0,3023.9,3.55728675]
[1764232428140,0.209,3024.3,3024.0,0.2503]
[1764232428320,0.30727889,3024.2,3024.0,0.5006]
[1764232428523,0.30727889,3024.1,3024.0,0.2503]
[1764232428718,0.30727889,3024.2,3024.0,3.3068783]
[1764232428948,0.30727889,3024.1,3024.0,3.5571783]
[1764232429146,0.209,3024.3,3024.0,0.2503]
[1764232429147,0.30727889,3024.2,3024.0,0.2503]
[1764232429336,0.30727889,3024.1,3024.0,0.2503]
[1764232429536,0.30727674,3024.2,3024.1,0.2503]
[1764232430128,1.25417674,3024.2,3023.8,3.30705575]
[1764232430329,0.4672,3023.9,3023.5,3.30840475]
[1764232430857,0.4672,3023.9,3023.5,9.37569373]
[1764232431054,0.4797,3024.1,3023.5,10.3592931]
[1764232431248,0.30730461,3024.0,3023.5,10.6095931]
[1764232432758,0.4797,3024.0,3023.5,10.6095931]
[1764232433358,3.30666054,3024.2,3023.5,10.6095931]
[1764232433560,0.30729689,3024.1,3023.5,10.6095931]
[1764232433757,0.30729689,3024.0,3023.5,10.6095931]
[1764232434069,3.78636054,3024.2,3023.5,3.99476319]
[1764232434264,0.4672,3023.6,3023.5,0.001]
[1764232434459,0.77443843,3023.6,3023.5,0.001]
[1764232434973,0.77445781,3023.6,3023.5,0.001]
[1764232435135,0.30725781,3023.6,3023.5,0.001]
[1764232435766,0.30725781,3023.7,3023.5,0.2513]
[1764232435943,0.30725781,3023.6,3023.5,0.2513]
[1764232436132,0.4672,3023.6,3023.5,0.001]
[1764232436330,0.77445781,3023.6,3023.5,0.001]
[1764232438269,5.01761101,3023.6,3023.5,0.001]
[1764232440365,5.74320512,3023.6,3023.5,0.001]
[1764232440675,9.30985152,3023.6,3023.5,0.001]
[1764232440838,10.32413649,3023.6,3023.5,0.001]
[1764232441251,10.62479359,3023.6,3023.5,0.001]
[1764232441453,11.48347329,3023.6,3023.5,0.001]
[1764232441657,10.30104276,3023.6,3023.5,0.001]
[1764232442262,11.47880943,3023.6,3023.5,0.001]
[1764232442651,11.47880943,3023.6,3023.3,0.001]
[1764232442652,0.4672,3023.2,3023.0,0.14016607]
[1764232442851,0.50456717,3022.9,3022.8,0.001]
[1764232443050,0.09906317,3022.5,3021.2,2.75986382]
[1764232443261,0.51625781,3022.4,3021.2,2.75986382]
[1764232443462,0.30725781,3022.3,3021.2,2.75986382]
[1764232443774,0.479413,3022.2,3021.2,2.75986382]
[1764232443957,2.67898504,3022.2,3021.2,2.75986382]
[1764232444160,0.30725781,3022.1,3021.2,2.75986382]
[1764232444477,0.4672,3021.5,3021.0,2.75986382]
[1764232445161,0.4672,3021.5,3020.5,0.1228]
[1764232445162,3.77681442,3021.5,3020.5,0.1228]
[1764232445406,0.39756144,3021.5,3021.4,0.2543]
[1764232445594,3.51853675,3021.6,3021.4,0.2543]
[1764232445780,1.20339327,3021.6,3021.4,0.2543]
[1764232445977,5.23849782,3021.6,3021.4,0.2543]
[1764232446476,0.99439327,3021.6,3021.5,0.2513]
[1764232446681,0.209,3021.6,3021.5,3.01116382]
[1764232447081,0.209,3021.6,3021.5,0.2513]
[1764232447279,0.93459411,3021.6,3021.5,0.2513]
[1764232447881,0.72559411,3021.8,3021.5,0.2513]
[1764232448087,4.03492154,3021.8,3021.5,0.2513]
[1764232448813,0.4672,3021.6,3021.4,0.003]
[1764232449113,0.4561,3021.5,3021.4,0.004]
[1764232449707,0.4546,3021.7,3021.4,0.004]
[1764232450502,3.30950489,3021.6,3021.4,0.004]
[1764232451809,6.61900978,3021.6,3021.4,0.004]
[1764232452004,0.4558,3021.5,3021.4,0.004]
[1764232452406,0.9176,3021.5,3021.4,0.004]
[1764232452603,3.76541442,3021.5,3021.4,0.004]
[1764232452807,3.30961442,3021.5,3021.4,0.004]
[1764232453192,5.16180853,3021.5,3021.4,0.004]
[1764232453416,6.00894043,3021.5,3021.4,0.004]
[1764232454919,8.96898428,3021.5,3021.4,0.004]
[1764232455118,5.47074729,3021.5,3021.4,0.004]
[1764232455426,5.93254729,3021.5,3021.4,0.004]
[1764232455617,6.14154729,3021.5,3021.4,0.004]
[1764232457307,5.16180853,3021.5,3021.4,0.004]
[1764232459923,4.70000853,3021.5,3021.4,0.004]
[1764232460926,4.03520853,3021.5,3021.4,0.2553]
[1764232461127,4.24420853,3021.5,3021.4,0.2553]
[1764232461422,0.93459411,3021.5,3021.4,0.2553]
[1764232461624,0.72559411,3021.5,3021.4,0.2553]
[1764232462130,0.93459411,3021.5,3021.4,0.2553]
[1764232462302,0.90978432,3021.5,3021.4,0.2553]
[1764232462503,0.70078432,3021.5,3021.4,0.5066]
[1764232463610,0.70078432,3021.5,3021.4,0.2553]
[1764232463923,4.01039874,3021.5,3021.4,0.2553]
[1764232464632,0.70078432,3021.5,3021.4,0.2553]
[1764232465128,4.01039874,3021.5,3021.4,0.2553]
[1764232466418,0.70078432,3021.5,3021.4,0.2553]
[1764232466619,4.01239874,3021.5,3021.4,0.2553]
[1764232467199,0.70278432,3021.5,3021.4,0.2553]
[1764232467603,4.01239874,3021.5,3021.4,0.2553]
[1764232468432,4.3182962,3021.5,3021.4,0.2553]
[1764232469425,3.61751188,3021.5,3021.4,0.2553]
[1764232470035,0.002,3021.9,3021.4,3.87214785]
[1764232470233,0.002,3021.9,3021.8,3.20934385]
[1764232470729,0.002,3021.9,3021.8,3.45864385]
[1764232471031,0.002,3021.9,3021.8,3.86414785]
[1764232471218,0.002,3021.9,3021.8,4.21338985]
[1764232471401,0.002,3021.9,3021.8,7.1734337]
[1764232471729,0.002,3021.9,3021.8,8.22171624]
[1764232471929,0.002,3022.2,3021.9,0.405504]
[1764232472130,0.002,3022.2,3022.1,3.33484385]
[1764232472528,0.002,3022.2,3022.1,4.71524196]
[1764232473106,0.209,3023.3,3022.2,1.13109811]
[1764232473107,0.30642784,3023.3,3022.2,1.13109811]
[1764232473430,3.30726858,3023.7,3023.2,0.2493]
[1764232473431,3.51626858,3023.7,3023.2,0.2493]
[1764232473733,0.30609594,3023.6,3023.2,0.2493]
[1764232473947,3.76894828,3023.8,3023.2,0.2493]
[1764232474146,0.30609587,3023.7,3023.2,3.55700871]
[1764232474303,0.72559411,3023.8,3023.2,3.55700871]
[1764232474509,0.209,3023.9,3023.6,0.2493]
[1764232474718,0.72559411,3023.8,3023.0,0.2493]
[1764232474940,0.72559411,3023.8,3023.1,0.2493]
[1764232475443,0.72559411,3023.8,3022.6,0.209]
[1764232475444,3.30731578,3023.6,3022.8,3.76648851]
[1764232475806,3.30731578,3023.6,3022.8,3.55745442]
[1764232476003,0.4618,3023.5,3022.8,3.55745442]
[1764232476620,0.4618,3023.5,3022.8,4.56094215]
[1764232476945,0.4618,3023.5,3022.8,7.86913323]
[1764232477253,3.76933016,3023.5,3022.8,4.56094215]
[1764232477402,7.07686032,3023.5,3022.7,0.209]
[1764232477603,1.18739411,3023.4,3022.7,0.209]
[1764232478045,0.4618,3023.3,3022.7,0.209]
[1764232478624,0.6708,3023.3,3022.4,3.55785123]
[1764232478817,0.6708,3023.3,3022.4,1.16855291]
[1764232479145,0.4618,3023.2,3022.4,1.16855291]
[1764232479525,6.61572556,3023.1,3022.3,2.96004385]
[1764232480045,0.4678,3023.0,3022.3,2.96004385]
[1764232480425,0.1867,3022.9,3022.3,2.96004385]
[1764232481147,0.1867,3022.9,3022.3,6.26877862]
[1764232481354,0.4678,3023.0,3022.3,6.51807862]
[1764232482019,3.30808164,3022.9,3022.3,7.53423092]
[1764232482359,0.209,3023.2,3023.0,0.2493]
[1764232482562,7.08243156,3023.6,3022.6,2.96004385]
[1764232482563,0.1867,3023.9,3023.2,0.2493]
[1764232482721,0.6545,3023.9,3023.2,0.2493]
[1764232483147,0.4678,3023.8,3023.2,0.2493]
[1764232484255,6.6144128,3023.7,3023.2,0.2493]
[1764232484630,7.0822128,3023.7,3023.2,0.2493]
[1764232485325,3.7750064,3023.7,3023.2,0.2493]
[1764232486656,0.1887,3023.9,3023.6,0.2493]
[1764232486657,0.002,3023.9,3023.6,0.2493]
[1764232486858,0.002,3023.9,3023.8,0.2493]
[1764232487027,3.30898766,3023.9,3023.3,0.2493]
[1764232487951,3.49568766,3023.9,3023.2,3.30771954]
[1764232488156,3.96348766,3023.9,3023.2,3.30771954]
[1764232488356,3.96348766,3023.9,3023.2,3.68432149]
[1764232489261,3.96348766,3023.9,3023.2,6.99207486]
[1764232490862,3.96348766,3023.9,3023.2,3.68432149]
[1764232492863,3.96348766,3023.9,3023.2,6.99207486]
[1764232494135,3.96348766,3023.9,3023.2,7.24137486]
[1764232494963,0.1887,3023.9,3023.4,3.30753456]
[1764232495142,0.002,3023.9,3023.4,3.30753456]
[1764232495342,0.002,3023.9,3023.4,3.55683456]
[1764232496241,3.30899409,3023.9,3023.4,3.55683456]
[1764232497147,0.002,3023.9,3023.8,0.2493]
[1764232497841,0.492,3023.9,3023.4,3.30753456]
[1764232498361,0.002,3023.9,3023.4,3.55683456]
[1764232499044,0.002,3023.9,3023.4,3.30753456]
[1764232499239,0.002,3023.9,3023.8,0.2493]
[1764232500754,1.1465,3023.9,3023.3,0.209]
[1764232501157,0.002,3023.9,3023.4,0.2493]
[1764232501346,0.002,3023.9,3023.4,3.55673335]
[1764232501759,0.6565,3023.9,3023.4,3.30743335]
[1764232502368,0.002,3023.9,3023.4,0.2493]
[1764232502772,0.4698,3023.9,3023.3,0.209]
[1764232502972,0.002,3023.9,3023.3,3.51660971]
[1764232503158,0.1887,3023.9,3023.3,3.51660971]
[1764232503358,3.49569208,3023.9,3023.3,3.51660971]
[1764232504172,3.96349208,3023.9,3023.3,3.51660971]
[1764232505092,0.002,3023.9,3023.3,6.82425367]
[1764232505315,0.002,3023.9,3023.5,3.30742516]
[1764232505588,0.002,3023.9,3023.8,0.2493]
[1764232505902,0.002,3023.9,3023.8,0.4986]
[1764232506881,0.002,3023.9,3023.7,0.209]
[1764232506882,8.5014,3023.8,3023.7,0.209]
[1764232507491,8.5014,3023.8,3023.7,3.5162064]
[1764232508287,8.5014,3023.8,3023.7,4.49405156]
[1764232510070,8.5014,3023.8,3023.7,4.89955556]
[1764232510672,8.5014,3023.8,3023.7,7.65688529]
[1764232511298,8.5014,3023.8,3023.7,4.89955556]
[1764232511589,8.5014,3023.8,3023.7,7.65688529]
[1764232512264,8.5014,3023.8,3023.7,10.41421502]
[1764232512464,8.5014,3023.8,3023.7,7.65688529]
[1764232512676,8.5014,3023.8,3023.7,10.41421502]
[1764232512877,8.5014,3023.8,3023.7,7.65688529]
[1764232514894,0.002,3024.3,3023.8,1.50192327]
[1764232515200,0.002,3024.3,3024.2,6.64575757]
[1764232515379,0.002,3024.3,3024.2,6.85475757]
[1764232516295,0.002,3024.3,3024.2,1.13109811]
[1764232516480,0.002,3024.3,3024.2,4.09742784]
[1764232516795,0.002,3024.3,3024.2,4.7829036]
[1764232516995,0.002,3024.3,3024.2,8.08956321]
[1764232517176,0.002,3024.3,3024.2,7.88056321]
[1764232517378,0.002,3024.3,3024.2,8.08956321]
[1764232520777,0.002,3024.3,3024.2,7.47505921]
[1764232520966,0.002,3024.3,3024.2,7.68405921]
[1764232521378,0.002,3024.3,3024.2,6.9584651]
[1764232521595,0.002,3024.3,3024.2,6.27298934]
[1764232522610,0.4718,3024.3,3024.2,0.209]
[1764232523374,0.4718,3024.3,3024.2,6.27298934]
[1764232523708,0.002,3024.3,3024.2,6.27298934]
[1764232528291,0.002,3024.3,3024.2,6.67849334]
[1764232528492,0.002,3024.3,3024.2,7.95275172]
[1764232529513,0.002,3024.3,3024.2,7.33824772]
[1764232529811,0.9448,3024.3,3024.2,7.54724772]
[1764232530019,0.002,3024.3,3024.2,7.54724772]
[1764232530908,0.4718,3024.3,3024.2,7.33824772]
[1764232531218,0.002,3024.3,3024.2,7.54724772]
[1764232533619,0.002,3024.3,3024.2,7.95275172]
[1764232538826,0.0735,3025.0,3024.3,0.1041]
[1764232538989,0.0735,3025.0,3024.3,0.4378]
[1764232539199,0.0735,3025.0,3024.4,3.96042086]
[1764232539404,0.1835,3024.9,3024.4,3.96042086]
[1764232540439,0.1835,3024.9,3024.5,6.61266324]
[1764232540729,0.1835,3024.9,3024.6,0.209]
[1764232540905,0.6792,3024.9,3024.6,0.209]
[1764232541303,0.469,3024.7,3024.2,3.30665959]
[1764232541530,0.4957,3024.8,3023.9,4.03250103]
[1764232541531,0.4654,3024.3,3023.9,4.03250103]
[1764232541750,0.4957,3024.7,3024.0,2.96632973]
[1764232541947,0.4957,3024.7,3024.2,0.3337]
[1764232542244,0.30747863,3024.6,3024.2,0.3337]
[1764232542448,0.1835,3024.9,3024.4,2.75732973]
[1764232542646,0.30751161,3024.8,3024.4,2.96632973]
[1764232542820,0.30751161,3024.7,3024.4,2.96632973]
[1764232543233,0.80321161,3024.7,3024.4,2.96632973]
[1764232543538,0.4957,3024.7,3024.4,2.96632973]
[1764232543836,0.4957,3024.7,3024.4,0.209]
[1764232544245,0.1835,3024.9,3024.4,1.20098432]
[1764232544430,0.30758012,3024.8,3024.4,3.95831405]
[1764232544608,0.30758012,3024.7,3024.5,3.30633162]
[1764232544815,0.4957,3024.8,3024.4,3.51542936]
[1764232545009,0.30758015,3024.7,3024.4,3.51542936]
[1764232545244,0.4957,3024.8,3024.4,3.51542936]
[1764232545458,0.30761556,3024.7,3024.4,3.51542936]
[1764232545748,0.4957,3024.8,3024.4,4.50739976]
[1764232545917,0.30761575,3024.7,3024.4,10.57117043]
[1764232546125,0.4957,3024.8,3024.4,10.57117043]
[1764232546430,0.30761687,3024.7,3024.4,10.57117043]
[1764232546635,0.4957,3024.8,3024.6,2.75732973]
[1764232546835,0.30769536,3024.7,3024.6,2.75732973]
[1764232547145,0.30769536,3024.7,3024.6,3.81444677]
[1764232547447,0.002,3025.0,3024.6,7.2391765]
[1764232547651,0.002,3025.0,3024.9,3.09102973]
[1764232547817,0.002,3025.0,3024.9,3.30002973]
[1764232548019,0.002,3025.0,3024.9,3.63372973]
[1764232548211,0.002,3025.0,3024.9,3.9971027]
[1764232548616,0.002,3025.0,3024.9,7.3029971]
[1764232549122,0.002,3025.0,3024.9,7.7085011]
[1764232549748,0.002,3025.0,3024.9,8.10039521]
[1764232549953,0.002,3025.1,3025.0,1.13109811]
[1764232550240,0.002,3025.1,3025.0,6.52736725]
[1764232550653,0.002,3025.4,3025.3,0.405504]
[1764232550858,0.002,3025.4,3025.3,8.37560298]
[1764232551018,0.002,3025.4,3025.3,8.70930298]
[1764232551214,0.002,3025.4,3025.3,7.52215757]
[1764232551459,0.002,3025.5,3025.4,1.13109811]
[1764232551618,0.002,3026.0,3025.5,0.405504]
[1764232551950,0.002,3026.0,3025.6,4.22212784]
[1764232552340,0.002,3026.0,3025.6,4.55582784]
[1764232552648,0.002,3026.0,3025.6,7.5272574]
[1764232552816,0.002,3026.0,3025.6,8.61050689]
[1764232553015,0.002,3026.0,3025.6,8.94420689]
[1764232553847,0.002,3026.0,3025.6,5.85317716]
[1764232554044,0.002,3026.0,3025.6,8.94420689]
[1764232555924,0.002,3026.0,3025.6,8.61050689]
[1764232556131,0.002,3026.0,3025.6,8.94420689]
[1764232559850,0.002,3026.0,3025.6,8.61050689]
[1764232561048,0.002,3026.0,3025.6,11.70153662]
[1764232561248,0.002,3026.0,3025.7,0.72559411]
[1764232561425,0.002,3026.0,3025.7,3.50574389]
[1764232561869,0.002,3026.2,3026.0,0.3337]
[1764232562040,0.002,3026.2,3025.8,0.405504]
[1764232562041,0.002,3026.4,3026.3,5.92016346]
[1764232562358,0.002,3026.4,3026.3,6.97945757]
[1764232562557,0.002,3026.4,3026.3,10.61752263]
[1764232562724,0.002,3026.4,3026.3,8.95107199]
[1764232562926,0.002,3027.0,3026.6,0.405504]
[1764232563126,0.002,3027.0,3026.9,6.64575757]
[1764232563439,0.002,3027.0,3026.9,6.97945757]
[1764232563640,0.002,3027.0,3026.9,7.31315757]
[1764232563855,0.002,3027.0,3026.9,8.07860143]
[1764232564561,0.002,3027.0,3026.9,6.2419216]
[1764232564754,0.002,3027.0,3026.9,9.54563166]
[1764232567238,0.4957,3028.4,3027.2,0.405504]
[1764232567452,0.4957,3028.4,3028.2,3.67797963]
[1764232567757,0.469,3028.3,3028.2,3.67797963]
[1764232568264,0.4957,3029.8,3028.3,1.13109811]
[1764232568430,0.4957,3029.0,3028.9,0.405504]
[1764232568764,0.6873,3029.3,3028.9,0.614504]
[1764232568966,0.469,3029.0,3028.9,3.9160326]
[1764232569162,0.1916,3029.3,3028.9,10.5190898]
[1764232569368,0.4729,3029.8,3029.2,3.67797963]
[1764232570657,0.4729,3029.8,3029.0,0.405504]
[1764232570658,0.4662,3029.3,3029.0,0.405504]
[1764232570859,0.4662,3029.1,3029.0,0.405504]
[1764232571056,0.4662,3029.1,3029.0,3.70692361]
[1764232571448,0.1916,3030.0,3029.0,7.34204322]
[1764232571449,0.4948,3029.7,3029.0,7.34204322]
[1764232571769,0.4948,3029.7,3029.3,0.405504]
[1764232571961,0.4662,3029.4,3029.3,0.614504]
[1764232572273,0.4948,3029.7,3029.3,0.614504]
[1764232572432,0.4948,3029.7,3029.3,0.948204]
[1764232572636,0.4948,3029.7,3029.3,0.614504]
[1764232573076,0.1916,3030.0,3029.5,0.405504]
[1764232573239,0.6864,3030.0,3029.5,0.405504]
[1764232573440,0.4662,3029.6,3029.5,0.405504]
[1764232575178,0.4662,3029.6,3029.5,3.70637873]
[1764232575673,0.4662,3029.6,3029.3,4.09790363]
[1764232575674,0.961,3029.6,3029.3,0.209]
[1764232575862,0.4662,3029.4,3029.3,0.209]
[1764232576238,0.961,3029.4,3029.3,0.209]
[1764232576435,0.961,3029.4,3029.3,3.51009266]
[1764232576782,0.4948,3029.8,3029.4,0.405504]
[1764232577283,0.4662,3029.5,3029.4,3.70648769]
[1764232577864,0.1916,3030.0,3029.4,3.70648769]
[1764232577865,0.4948,3029.7,3029.4,7.00747138]
[1764232578055,0.1916,3031.0,3029.7,0.405504]
[1764232578056,0.1916,3030.6,3029.7,0.405504]
[1764232578377,0.4948,3030.3,3029.8,0.209]
[1764232578985,0.4948,3030.3,3029.9,0.405504]
[1764232579284,0.002,3030.2,3030.0,6.60066006]
[1764232579665,0.4662,3030.1,3030.0,3.70583403]
[1764232579862,0.4968,3030.2,3030.1,0.739204]
[1764232579863,0.002,3030.2,3030.1,0.739204]
[1764232580078,0.002,3030.2,3030.1,1.52838077]
[1764232580594,0.963,3030.2,3029.7,0.6864]
[1764232580887,0.6601,3029.8,3028.9,6.60303375]
[1764232581086,0.4948,3029.7,3029.0,0.72559411]
[1764232581386,0.4948,3029.7,3029.2,3.30120163]
[1764232581595,0.4948,3029.7,3028.9,3.3015286]
[1764232581596,0.4662,3029.1,3028.9,3.3015286]
[1764232582001,0.4662,3029.1,3028.1,0.1094]
[1764232582002,0.6601,3028.9,3028.1,0.1094]
[1764232582309,0.4662,3028.9,3028.6,0.405504]
[1764232582464,0.4948,3029.1,3028.5,0.209]
[1764232582661,0.4948,3029.1,3028.6,0.405504]
[1764232582903,0.4948,3029.4,3028.6,0.405504]
[1764232583110,0.4948,3029.4,3028.6,0.739204]
[1764232583404,0.4948,3029.4,3028.6,3.30183637]
[1764232583573,3.79583521,3029.4,3028.7,0.72559411]
[1764232583893,3.79583521,3029.4,3027.7,0.3337]
[1764232583894,0.6601,3028.7,3027.7,0.3337]
[1764232584090,0.6601,3028.7,3028.2,0.209]
[1764232584091,0.4662,3028.6,3028.2,0.209]
[1764232584262,0.961,3028.6,3028.3,0.405504]
[1764232584772,0.4662,3028.4,3028.3,0.405504]
[1764232585087,0.4662,3028.4,3028.2,0.209]
[1764232585286,0.4662,3028.3,3028.2,3.91679579]
[1764232585868,0.4662,3028.3,3028.2,4.63872255]
[1764232586187,0.1939,3028.7,3028.2,8.27471434]
[1764232586386,0.6887,3028.7,3028.3,0.405504]